{"text_format":"3","workbook":"xlsx","n_sheets":2,"sheets":["POČETAK","VREMENSKA TABLICA – GODINA"],"not_rendered":{"defined_names":2},"read":"whole","date_system":"1900"}

{"sheet":"POČETAK","index":0,"n_rows":8,"n_cols":2,"rows_kept":8}
[null,"O OVOM PREDLOŠKU"]
[null,"Pratite radno vrijeme u danu, tjednu, mjesecu i godini uz ovu evidencijska kartica zaposlenika."]
[null,"Unesite osnovne informacije, npr. ime i prezime zaposlenika, ime i prezime rukovoditelja, adresu e-pošte i telefonski broj. "]
[null,"Dodajte radno vrijeme u tablicu svakog mjeseca. Zabilježite broj sati tijekom redovnog radnog vremena i prekovremenog rada u zasebne stupce za svaki dan u tjednu svakog tjedna. "]
[null,"Ukupan broj sati, broj sati unutar redovnog radnog vremena i broj prekovremenih sati automatski se izračunavaju. "]
[null,"Napomene:"]
[null,"dodatne su upute navedene u stupcu A na radnom listu VREMENSKA TABLICA – GODINA. Ovaj je tekst namjerno skriven. Da biste uklonili tekst, odaberite stupac A, a zatim odaberite IZBRIŠI. Da biste otkrili tekst, odaberite stupac A, a zatim promijenite boju fonta. "]
[null,"Da biste saznali više o tablicama, pritisnite SHIFT i zatim F10 na tablici pa odaberite mogućnost TABLICA i potom ZAMJENSKI TEKST."]

{"sheet":"VREMENSKA TABLICA – GODINA","index":1,"n_rows":132,"n_cols":15,"rows_kept":132,"merged":[[0,1,0,2],[0,4,0,14],[10,6,10,7],[21,6,21,7],[32,6,32,7],[33,4,33,14],[43,6,43,7],[54,6,54,7],[65,6,65,7],[66,4,66,14],[76,6,76,7],[87,6,87,7],[98,6,98,7],[99,4,99,14],[109,6,109,7],[120,6,120,7],[131,6,131,7]]}
["Na ovom radnom listu stvorite vremensku tablicu zaposlenika s radnim vremenom u danu, tjednu, mjesecu ili godini. \nUpute za korištenje ove radne knjige nalaze se u ćelijama u ovom stupcu. Pomoću tipke sa strelicom prema dolje počnite s radom.\nU ćeliji s desne strane nalazi se naslov ovog radnog lista, dok se zaglavlje za tromjesečje koje obuhvaća siječanj, veljača i ožujak nalazi u ćeliji E1.","EVIDENCIJSKA KARTICA \nZAPOSLENIKA",null,null,"Siječanj, veljača, ožujak      Evidencijska kartica zaposlenika: dnevno, tjedno, mjesečno, godišnje"]
["Unesite ime i prezime zaposlenika u ćeliju C2, a broj sati unutar redovnog radnog vremena i broj prekovremenih sati u tablicu za siječanj koja započinje ćelijom E2.","Ime i prezime zaposlenika:",null,null,"Siječanj","Tjedan 1","Prekovremeni rad","Tjedan 2","Prekovremeni rad  ","Tjedan 3","Prekovremeni rad   ","Tjedan 4","Prekovremeni rad    ","Tjedan 5","Prekovremeni rad     "]
["U ćeliju C3 unesite ime i prezime rukovoditelja.","Rukovoditelj:",null,null,"Ponedjeljak",{"v":8,"d":"8.0"}]
["U ćeliju C4 unesite adresu e-pošte.","E-pošta:",null,null,"Utorak",{"v":8,"d":"8.0"},{"v":2,"d":"2.0"}]
["U ćeliju C5 unesite telefonski broj. Sljedeća je uputa u ćeliji A9.","Telefonski broj:",null,null,"Srijeda"]
[{"$nulls":4},"Četvrtak"]
[{"$nulls":4},"Petak"]
[{"$nulls":4},"Subota"]
["Ukupan broj sati tijekom redovnog radnog vremena automatski se izračunava u ćeliji C9.","Broj sati tijekom redovnog radnog vremena:",{"$f":"Broj_sati_tijekom_redovnog_radnog_vremena","v":31},null,"Nedjelja"]
["Ukupan broj sati tijekom prekovremenog rada automatski se izračunava u ćeliji C10.","Broj sati tijekom prekovremenog rada:",{"$f":"Broj_sati_tijekom_prekovremenog_rada","v":4},null,"Ukupan broj sati tjedno",{"$f":"SUM(F3:F9)","v":{"v":16,"d":"16.0"}},{"v":2,"d":"2.0"},{"v":0,"d":"0.0"},{"v":0,"d":"0.0"},{"v":0,"d":"0.0"},{"v":0,"d":"0.0"},{"v":0,"d":"0.0"},{"v":0,"d":"0.0"},{"v":0,"d":"0.0"},{"v":0,"d":"0.0"}]
["Ukupan broj sati rada automatski se izračunava u ćeliji C11. Ukupan broj sati tijekom redovnog radnog vremena za siječanj automatski se izračunava u ćeliji F11, dok se ukupan broj sati prekovremenog rada za siječanj automatski izračunava u ćeliji I11. Sljedeća je uputa u ćeliji A13.","Ukupno",{"$f":"Broj_sati_tijekom_redovnog_radnog_vremena+Broj_sati_tijekom_prekovremenog_rada","v":35},null,{"$f":"TEXT(DATEVALUE(Siječanj[[#Headers],[Siječanj]]&\"  \"&YEAR(TODAY())),\"mmm.\")&\" ukupno: Redovno radno vrijeme\"","v":"sij. ukupno: Redovno radno vrijeme"},{"$f":"SUM(Siječanj[Tjedan 1],Siječanj[Tjedan 2],Siječanj[Tjedan 3],Siječanj[Tjedan 4],Siječanj[Tjedan 5])","v":{"v":16,"d":"16.0"}},{"$f":"TEXT(DATEVALUE(Siječanj[[#Headers],[Siječanj]]&\"  \"&YEAR(TODAY())),\"mmm.\")&\" ukupno: Prekovremeni rad\"","v":"sij. ukupno: Prekovremeni rad"},null,{"$f":"SUM(Siječanj[Prekovremeni rad],Siječanj[[Prekovremeni rad  ]],Siječanj[[Prekovremeni rad   ]],Siječanj[[Prekovremeni rad    ]],Siječanj[[Prekovremeni rad     ]])","v":{"v":2,"d":"2.0"}}]
[]
["Broj sati tijekom redovnog radnog vremena i prekovremenog rada za veljača unesite u tablicu koja započinje ćelijom E13. Sljedeća je uputa u ćeliji A22.",{"$nulls":3},"Veljača","Tjedan 1","Prekovremeni rad","Tjedan 2","Prekovremeni rad  ","Tjedan 3","Prekovremeni rad   ","Tjedan 4","Prekovremeni rad    ","Tjedan 5","Prekovremeni rad     "]
[{"$nulls":4},"Ponedjeljak",{"v":8,"d":"8.0"}]
[{"$nulls":4},"Utorak",{"v":7,"d":"7.0"},{"v":2,"d":"2.0"}]
[{"$nulls":4},"Srijeda"]
[{"$nulls":4},"Četvrtak"]
[{"$nulls":4},"Petak"]
[{"$nulls":4},"Subota"]
[{"$nulls":4},"Nedjelja"]
[{"$nulls":4},"Ukupan broj sati tjedno",{"$f":"SUM(F14:F20)","v":{"v":15,"d":"15.0"}},{"v":2,"d":"2.0"},{"v":0,"d":"0.0"},{"v":0,"d":"0.0"},{"v":0,"d":"0.0"},{"v":0,"d":"0.0"},{"v":0,"d":"0.0"},{"v":0,"d":"0.0"},{"v":0,"d":"0.0"},{"v":0,"d":"0.0"}]
["Ukupan broj sati tijekom redovnog radnog vremena za veljaču automatski se izračunava u ćeliji F22, dok se ukupan broj sati prekovremenog rada za veljaču automatski izračunava u ćeliji I22. Sljedeća je uputa u ćeliji A24.",{"$nulls":3},{"$f":"TEXT(DATEVALUE(Veljača[[#Headers],[Veljača]]&\"  \"&YEAR(TODAY())),\"mmm.\")&\" ukupno: Redovno radno vrijeme\"","v":"vlj. ukupno: Redovno radno vrijeme"},{"$f":"SUM(Veljača[Tjedan 1],Veljača[Tjedan 2],Veljača[Tjedan 3],Veljača[Tjedan 4],Veljača[Tjedan 5])","v":{"v":15,"d":"15.0"}},{"$f":"TEXT(DATEVALUE(Veljača[[#Headers],[Veljača]]&\" \"&YEAR(TODAY())),\"mmm.\")&\" ukupno: Prekovremeni rad\"","v":"vlj. ukupno: Prekovremeni rad"},null,{"$f":"SUM(Veljača[Prekovremeni rad],Veljača[[Prekovremeni rad  ]],Veljača[[Prekovremeni rad   ]],Veljača[[Prekovremeni rad    ]],Veljača[[Prekovremeni rad     ]])","v":{"v":2,"d":"2.0"}}]
[]
["Broj sati tijekom redovnog radnog vremena i prekovremenog rada za ožujak unesite u tablicu koja započinje ćelijom E24. Sljedeća je uputa u ćeliji A33.",{"$nulls":3},"Ožujak","Tjedan 1","Prekovremeni rad","Tjedan 2","Prekovremeni rad ","Tjedan 3","Prekovremeni rad  ","Tjedan 4","Prekovremeni rad    ","Tjedan 5","Prekovremeni rad     "]
[{"$nulls":4},"Ponedjeljak"]
[{"$nulls":4},"Utorak"]
[{"$nulls":4},"Srijeda"]
[{"$nulls":4},"Četvrtak"]
[{"$nulls":4},"Petak"]
[{"$nulls":4},"Subota"]
[{"$nulls":4},"Nedjelja"]
[{"$nulls":4},"Ukupan broj sati tjedno",{"$f":"SUM(F25:F31)","v":{"v":0,"d":"0.0"}},{"v":0,"d":"0.0"},{"v":0,"d":"0.0"},{"v":0,"d":"0.0"},{"v":0,"d":"0.0"},{"v":0,"d":"0.0"},{"v":0,"d":"0.0"},{"v":0,"d":"0.0"},{"v":0,"d":"0.0"},{"v":0,"d":"0.0"}]
["Ukupan broj sati tijekom redovnog radnog vremena za ožujak automatski se izračunava u ćeliji F33, dok se ukupan broj sati prekovremenog rada za ožujak automatski izračunava u ćeliji I33.",{"$nulls":3},{"$f":"TEXT(DATEVALUE(Ožujak[[#Headers],[Ožujak]]&\" \"&YEAR(TODAY())),\"mmm.\")&\" ukupno: Redovno radno vrijeme\"","v":"ožu. ukupno: Redovno radno vrijeme"},{"$f":"SUM(Ožujak[Tjedan 1],Ožujak[Tjedan 2],Ožujak[Tjedan 3],Ožujak[Tjedan 4],Ožujak[Tjedan 5])","v":{"v":0,"d":"0.0"}},{"$f":"TEXT(DATEVALUE(Ožujak[[#Headers],[Ožujak]]&\" \"&YEAR(TODAY())),\"mmm.\")&\" ukupno: Prekovremeni rad\"","v":"ožu. ukupno: Prekovremeni rad"},null,{"$f":"SUM(Ožujak[Prekovremeni rad],Ožujak[[Prekovremeni rad ]],Ožujak[[Prekovremeni rad  ]],Ožujak[[Prekovremeni rad    ]],Ožujak[[Prekovremeni rad     ]])","v":{"v":0,"d":"0.0"}}]
["Zaglavlje za drugo tromjesečje koje obuhvaća travanj, svibanj i lipanj nalazi se u ćeliji E34. ",{"$nulls":3},"Travanj, svibanj, lipanj      Evidencijska kartica zaposlenika: dnevno, tjedno, mjesečno, godišnje"]
["Broj sati tijekom redovnog radnog vremena i prekovremenog rada za travanj unesite u tablicu koja započinje ćelijom E35. Sljedeća je uputa u ćeliji A44.",{"$nulls":3},"Travanj","Tjedan 1","Prekovremeni rad","Tjedan 2","Prekovremeni rad  ","Tjedan 3","Prekovremeni rad   ","Tjedan 4","Prekovremeni rad    ","Tjedan 5","Prekovremeni rad     "]
[{"$nulls":4},"Ponedjeljak"]
[{"$nulls":4},"Utorak"]
[{"$nulls":4},"Srijeda"]
[{"$nulls":4},"Četvrtak"]
[{"$nulls":4},"Petak"]
[{"$nulls":4},"Subota"]
[{"$nulls":4},"Nedjelja"]
[{"$nulls":4},"Ukupan broj sati tjedno",{"$f":"SUM(F36:F42)","v":{"v":0,"d":"0.0"}},{"v":0,"d":"0.0"},{"v":0,"d":"0.0"},{"v":0,"d":"0.0"},{"v":0,"d":"0.0"},{"v":0,"d":"0.0"},{"v":0,"d":"0.0"},{"v":0,"d":"0.0"},{"v":0,"d":"0.0"},{"v":0,"d":"0.0"}]
["Ukupan broj sati tijekom redovnog radnog vremena za travanj automatski se izračunava u ćeliji F44, dok se ukupan broj sati prekovremenog rada za travanj automatski izračunava u ćeliji I44. Sljedeća je uputa u ćeliji A46.",{"$nulls":3},{"$f":"TEXT(DATEVALUE(Travanj[[#Headers],[Travanj]]&\" \"&YEAR(TODAY())),\"mmm.\")&\" ukupno: Redovno radno vrijeme\"","v":"tra. ukupno: Redovno radno vrijeme"},{"$f":"SUM(Travanj[Tjedan 1],Travanj[Tjedan 2],Travanj[Tjedan 3],Travanj[Tjedan 4],Travanj[Tjedan 5])","v":{"v":0,"d":"0.0"}},{"$f":"TEXT(DATEVALUE(Travanj[[#Headers],[Travanj]]&\" \"&YEAR(TODAY())),\"mmm.\")&\" ukupno: Prekovremeni rad\"","v":"tra. ukupno: Prekovremeni rad"},null,{"$f":"SUM(Travanj[Prekovremeni rad],Travanj[[Prekovremeni rad  ]],Travanj[[Prekovremeni rad   ]],Travanj[[Prekovremeni rad    ]],Travanj[[Prekovremeni rad     ]])","v":{"v":0,"d":"0.0"}}]
[]
["Broj sati tijekom redovnog radnog vremena i prekovremenog rada za svibanj unesite u tablicu koja započinje ćelijom E46. Sljedeća je uputa u ćeliji A55.",{"$nulls":3},"Svibanj","Tjedan 1","Prekovremeni rad","Tjedan 2","Prekovremeni rad  ","Tjedan 3","Prekovremeni rad   ","Tjedan 4","Prekovremeni rad    ","Tjedan 5","Prekovremeni rad     "]
[{"$nulls":4},"Ponedjeljak"]
[{"$nulls":4},"Utorak"]
[{"$nulls":4},"Srijeda"]
[{"$nulls":4},"Četvrtak"]
[{"$nulls":4},"Petak"]
[{"$nulls":4},"Subota"]
[{"$nulls":4},"Nedjelja"]
[{"$nulls":4},"Ukupan broj sati tjedno",{"$f":"SUM(F47:F53)","v":{"v":0,"d":"0.0"}},{"v":0,"d":"0.0"},{"v":0,"d":"0.0"},{"v":0,"d":"0.0"},{"v":0,"d":"0.0"},{"v":0,"d":"0.0"},{"v":0,"d":"0.0"},{"v":0,"d":"0.0"},{"v":0,"d":"0.0"},{"v":0,"d":"0.0"}]
["Ukupan broj sati tijekom redovnog radnog vremena za svibanj automatski se izračunava u ćeliji F55, dok se ukupan broj sati prekovremenog rada za svibanj automatski izračunava u ćeliji I55. Sljedeća je uputa u ćeliji A57.",{"$nulls":3},{"$f":"TEXT(DATEVALUE(Svibanj[[#Headers],[Svibanj]]&\" \"&YEAR(TODAY())),\"mmm.\")&\" ukupno: Redovno radno vrijeme\"","v":"svi. ukupno: Redovno radno vrijeme"},{"$f":"SUM(Svibanj[Tjedan 1],Svibanj[Tjedan 2],Svibanj[Tjedan 3],Svibanj[Tjedan 4],Svibanj[Tjedan 5])","v":{"v":0,"d":"0.0"}},{"$f":"TEXT(DATEVALUE(Svibanj[[#Headers],[Svibanj]]&\" \"&YEAR(TODAY())),\"mmm.\")&\" ukupno: Prekovremeni rad\"","v":"svi. ukupno: Prekovremeni rad"},null,{"$f":"SUM(Svibanj[Prekovremeni rad],Svibanj[[Prekovremeni rad  ]],Svibanj[[Prekovremeni rad   ]],Svibanj[[Prekovremeni rad    ]],Svibanj[[Prekovremeni rad     ]])","v":{"v":0,"d":"0.0"}}]
[]
["Broj sati tijekom redovnog radnog vremena i prekovremenog rada za lipanj unesite u tablicu koja započinje ćelijom E57. Sljedeća je uputa u ćeliji A66.",{"$nulls":3},"Lipanj","Tjedan 1","Prekovremeni rad","Tjedan 2","Prekovremeni rad  ","Tjedan 3","Prekovremeni rad   ","Tjedan 4","Prekovremeni rad    ","Tjedan 5","Prekovremeni rad     "]
[{"$nulls":4},"Ponedjeljak"]
[{"$nulls":4},"Utorak"]
[{"$nulls":4},"Srijeda"]
[{"$nulls":4},"Četvrtak"]
[{"$nulls":4},"Petak"]
[{"$nulls":4},"Subota"]
[{"$nulls":4},"Nedjelja"]
[{"$nulls":4},"Ukupan broj sati tjedno",{"$f":"SUM(F58:F64)","v":{"v":0,"d":"0.0"}},{"v":0,"d":"0.0"},{"v":0,"d":"0.0"},{"v":0,"d":"0.0"},{"v":0,"d":"0.0"},{"v":0,"d":"0.0"},{"v":0,"d":"0.0"},{"v":0,"d":"0.0"},{"v":0,"d":"0.0"},{"v":0,"d":"0.0"}]
["Ukupan broj sati tijekom redovnog radnog vremena za lipanj automatski se izračunava u ćeliji F66, dok se ukupan broj sati prekovremenog rada za lipanj automatski izračunava u ćeliji I66.",{"$nulls":3},{"$f":"TEXT(DATEVALUE(Lipanj[[#Headers],[Lipanj]]&\" \"&YEAR(TODAY())),\"mmm.\")&\" ukupno: Redovno radno vrijeme\"","v":"lip. ukupno: Redovno radno vrijeme"},{"$f":"SUM(Lipanj[Tjedan 1],Lipanj[Tjedan 2],Lipanj[Tjedan 3],Lipanj[Tjedan 4],Lipanj[Tjedan 5])","v":{"v":0,"d":"0.0"}},{"$f":"TEXT(DATEVALUE(Lipanj[[#Headers],[Lipanj]]&\" \"&YEAR(TODAY())),\"mmm.\")&\" ukupno: Prekovremeni rad\"","v":"lip. ukupno: Prekovremeni rad"},null,{"$f":"SUM(Lipanj[Prekovremeni rad],Lipanj[[Prekovremeni rad  ]],Lipanj[[Prekovremeni rad   ]],Lipanj[[Prekovremeni rad    ]],Lipanj[[Prekovremeni rad     ]])","v":{"v":0,"d":"0.0"}}]
["Zaglavlje za treće tromjesečje koje obuhvaća srpanj, kolovoz i rujan nalazi se u ćeliji E67. ",{"$nulls":3},"Srpanj, kolovoz, rujan      Evidencijska kartica zaposlenika: dnevno, tjedno, mjesečno, godišnje"]
["Broj sati tijekom redovnog radnog vremena i prekovremenog rada za srpanj unesite u tablicu koja započinje ćelijom E68. Sljedeća je uputa u ćeliji A77.",{"$nulls":3},"Srpanj","Tjedan 1","Prekovremeni rad","Tjedan 2","Prekovremeni rad ","Tjedan 3","Prekovremeni rad  ","Tjedan 4","Prekovremeni rad   ","Tjedan 5","Prekovremeni rad     "]
[{"$nulls":4},"Ponedjeljak"]
[{"$nulls":4},"Utorak"]
[{"$nulls":4},"Srijeda"]
[{"$nulls":4},"Četvrtak"]
[{"$nulls":4},"Petak"]
[{"$nulls":4},"Subota"]
[{"$nulls":4},"Nedjelja"]
[{"$nulls":4},"Ukupan broj sati tjedno",{"$f":"SUM(F69:F75)","v":{"v":0,"d":"0.0"}},{"v":0,"d":"0.0"},{"v":0,"d":"0.0"},{"v":0,"d":"0.0"},{"v":0,"d":"0.0"},{"v":0,"d":"0.0"},{"v":0,"d":"0.0"},{"v":0,"d":"0.0"},{"v":0,"d":"0.0"},{"v":0,"d":"0.0"}]
["Ukupan broj sati tijekom redovnog radnog vremena za srpanj automatski se izračunava u ćeliji F77, dok se ukupan broj sati prekovremenog rada za srpanj automatski izračunava u ćeliji I77. Sljedeća je uputa u ćeliji A79.",{"$nulls":3},{"$f":"TEXT(DATEVALUE(Srpanj[[#Headers],[Srpanj]]&\" \"&YEAR(TODAY())),\"mmm.\")&\" ukupno: Redovno radno vrijeme\"","v":"srp. ukupno: Redovno radno vrijeme"},{"$f":"SUM(Srpanj[Tjedan 1],Srpanj[Tjedan 2],Srpanj[Tjedan 3],Srpanj[Tjedan 4],Srpanj[Tjedan 5])","v":{"v":0,"d":"0.0"}},{"$f":"TEXT(DATEVALUE(Srpanj[[#Headers],[Srpanj]]&\" \"&YEAR(TODAY())),\"mmm.\")&\" ukupno: Prekovremeni rad\"","v":"srp. ukupno: Prekovremeni rad"},null,{"$f":"SUM(Srpanj[Prekovremeni rad],Srpanj[[Prekovremeni rad ]],Srpanj[[Prekovremeni rad  ]],Srpanj[[Prekovremeni rad   ]],Srpanj[[Prekovremeni rad     ]])","v":{"v":0,"d":"0.0"}}]
[]
["Broj sati tijekom redovnog radnog vremena i prekovremenog rada za kolovoz unesite u tablicu koja započinje ćelijom E79. Sljedeća je uputa u ćeliji A88.",{"$nulls":3},"Kolovoz","Tjedan 1","Prekovremeni rad","Tjedan 2","Prekovremeni rad ","Tjedan 3","Prekovremeni rad   ","Tjedan 4","Prekovremeni rad  ","Tjedan 5","Prekovremeni rad    "]
[{"$nulls":4},"Ponedjeljak"]
[{"$nulls":4},"Utorak"]
[{"$nulls":4},"Srijeda"]
[{"$nulls":4},"Četvrtak"]
[{"$nulls":4},"Petak"]
[{"$nulls":4},"Subota"]
[{"$nulls":4},"Nedjelja"]
[{"$nulls":4},"Ukupan broj sati tjedno",{"$f":"SUBTOTAL(109,Kolovoz[Tjedan 1])","v":{"v":0,"d":"0.0"}},{"$f":"SUBTOTAL(109,Kolovoz[Prekovremeni rad])","v":{"v":0,"d":"0.0"}},{"$f":"SUBTOTAL(109,Kolovoz[Tjedan 2])","v":{"v":0,"d":"0.0"}},{"$f":"SUBTOTAL(109,Kolovoz[[Prekovremeni rad ]])","v":{"v":0,"d":"0.0"}},{"$f":"SUBTOTAL(109,Kolovoz[Tjedan 3])","v":{"v":0,"d":"0.0"}},{"$f":"SUBTOTAL(109,Kolovoz[[Prekovremeni rad   ]])","v":{"v":0,"d":"0.0"}},{"$f":"SUBTOTAL(109,Kolovoz[Tjedan 4])","v":{"v":0,"d":"0.0"}},{"$f":"SUBTOTAL(109,Kolovoz[[Prekovremeni rad  ]])","v":{"v":0,"d":"0.0"}},{"$f":"SUBTOTAL(109,Kolovoz[Tjedan 5])","v":{"v":0,"d":"0.0"}},{"$f":"SUBTOTAL(109,Kolovoz[[Prekovremeni rad    ]])","v":{"v":0,"d":"0.0"}}]
["Ukupan broj sati tijekom redovnog radnog vremena za kolovoz automatski se izračunava u ćeliji F88, dok se ukupan broj sati prekovremenog rada za kolovoz automatski izračunava u ćeliji I88. Sljedeća je uputa u ćeliji A90.",{"$nulls":3},{"$f":"TEXT(DATEVALUE(Kolovoz[[#Headers],[Kolovoz]]&\" \"&YEAR(TODAY())),\"mmm.\")&\" ukupno: Redovno radno vrijeme\"","v":"kol. ukupno: Redovno radno vrijeme"},{"$f":"SUM(Kolovoz[Tjedan 1],Kolovoz[Tjedan 2],Kolovoz[Tjedan 3],Kolovoz[Tjedan 4],Kolovoz[Tjedan 5])","v":{"v":0,"d":"0.0"}},{"$f":"TEXT(DATEVALUE(Kolovoz[[#Headers],[Kolovoz]]&\" \"&YEAR(TODAY())),\"mmm.\")&\" ukupno: Prekovremeni rad\"","v":"kol. ukupno: Prekovremeni rad"},null,{"$f":"SUM(Kolovoz[Prekovremeni rad],Kolovoz[[Prekovremeni rad ]],Kolovoz[[Prekovremeni rad   ]],Kolovoz[[Prekovremeni rad  ]],Kolovoz[[Prekovremeni rad    ]])","v":{"v":0,"d":"0.0"}}]
[]
["Broj sati tijekom redovnog radnog vremena i prekovremenog rada za rujan unesite u tablicu koja započinje ćelijom E90. Sljedeća je uputa u ćeliji A99.",{"$nulls":3},"Rujan","Tjedan 1","Prekovremeni rad","Tjedan 2","Prekovremeni rad ","Tjedan 3","Prekovremeni rad  ","Tjedan 4","Prekovremeni rad   ","Tjedan 5","Prekovremeni rad    "]
[{"$nulls":4},"Ponedjeljak"]
[{"$nulls":4},"Utorak"]
[{"$nulls":4},"Srijeda"]
[{"$nulls":4},"Četvrtak"]
[{"$nulls":4},"Petak"]
[{"$nulls":4},"Subota"]
[{"$nulls":4},"Nedjelja"]
[{"$nulls":4},"Ukupan broj sati tjedno",{"$f":"SUBTOTAL(109,Rujan[Tjedan 1])","v":{"v":0,"d":"0.0"}},{"$f":"SUBTOTAL(109,Rujan[Prekovremeni rad])","v":{"v":0,"d":"0.0"}},{"$f":"SUBTOTAL(109,Rujan[Tjedan 2])","v":{"v":0,"d":"0.0"}},{"$f":"SUBTOTAL(109,Rujan[[Prekovremeni rad ]])","v":{"v":0,"d":"0.0"}},{"$f":"SUBTOTAL(109,Rujan[Tjedan 3])","v":{"v":0,"d":"0.0"}},{"$f":"SUBTOTAL(109,Rujan[[Prekovremeni rad  ]])","v":{"v":0,"d":"0.0"}},{"$f":"SUBTOTAL(109,Rujan[Tjedan 4])","v":{"v":0,"d":"0.0"}},{"$f":"SUBTOTAL(109,Rujan[[Prekovremeni rad   ]])","v":{"v":0,"d":"0.0"}},{"$f":"SUBTOTAL(109,Rujan[Tjedan 5])","v":{"v":0,"d":"0.0"}},{"$f":"SUBTOTAL(109,Rujan[[Prekovremeni rad    ]])","v":{"v":0,"d":"0.0"}}]
["Ukupan broj sati tijekom redovnog radnog vremena za rujan automatski se izračunava u ćeliji F99, dok se ukupan broj sati prekovremenog rada za rujan automatski izračunava u ćeliji I99.",{"$nulls":3},{"$f":"TEXT(DATEVALUE(Rujan[[#Headers],[Rujan]]&\" \"&YEAR(TODAY())),\"mmm.\")&\" ukupno: Redovno radno vrijeme\"","v":"ruj. ukupno: Redovno radno vrijeme"},{"$f":"SUM(Rujan[Tjedan 1],Rujan[Tjedan 2],Rujan[Tjedan 3],Rujan[Tjedan 4],Rujan[Tjedan 5])","v":{"v":0,"d":"0.0"}},{"$f":"TEXT(DATEVALUE(Rujan[[#Headers],[Rujan]]&\" \"&YEAR(TODAY())),\"mmm.\")&\" ukupno: Prekovremeni rad\"","v":"ruj. ukupno: Prekovremeni rad"},null,{"$f":"SUM(Rujan[Prekovremeni rad],Rujan[[Prekovremeni rad ]],Rujan[[Prekovremeni rad  ]],Rujan[[Prekovremeni rad   ]],Rujan[[Prekovremeni rad    ]])","v":{"v":0,"d":"0.0"}}]
["Zaglavlje za četvrto tromjesečje koje obuhvaća listopad, studeni i prosinac nalazi se u ćeliji E100. ",{"$nulls":3},"Listopad, studeni, prosinac      Evidencijska kartica zaposlenika: dnevno, tjedno, mjesečno, godišnje"]
["Broj sati tijekom redovnog radnog vremena i prekovremenog rada za listopad unesite u tablicu koja započinje ćelijom E101. Sljedeća je uputa u ćeliji A110.",{"$nulls":3},"Listopad","Tjedan 1","Prekovremeni rad","Tjedan 2","Prekovremeni rad ","Tjedan 3","Prekovremeni rad  ","Tjedan 4","Prekovremeni rad   ","Tjedan 5","Prekovremeni rad    "]
[{"$nulls":4},"Ponedjeljak"]
[{"$nulls":4},"Utorak"]
[{"$nulls":4},"Srijeda"]
[{"$nulls":4},"Četvrtak"]
[{"$nulls":4},"Petak"]
[{"$nulls":4},"Subota"]
[{"$nulls":4},"Nedjelja"]
[{"$nulls":4},"Ukupan broj sati tjedno",{"$f":"SUBTOTAL(109,Listopad[Tjedan 1])","v":{"v":0,"d":"0.0"}},{"$f":"SUBTOTAL(109,Listopad[Prekovremeni rad])","v":{"v":0,"d":"0.0"}},{"$f":"SUBTOTAL(109,Listopad[Tjedan 2])","v":{"v":0,"d":"0.0"}},{"$f":"SUBTOTAL(109,Listopad[[Prekovremeni rad ]])","v":{"v":0,"d":"0.0"}},{"$f":"SUBTOTAL(109,Listopad[Tjedan 3])","v":{"v":0,"d":"0.0"}},{"$f":"SUBTOTAL(109,Listopad[[Prekovremeni rad  ]])","v":{"v":0,"d":"0.0"}},{"$f":"SUBTOTAL(109,Listopad[Tjedan 4])","v":{"v":0,"d":"0.0"}},{"$f":"SUBTOTAL(109,Listopad[[Prekovremeni rad   ]])","v":{"v":0,"d":"0.0"}},{"$f":"SUBTOTAL(109,Listopad[Tjedan 5])","v":{"v":0,"d":"0.0"}},{"$f":"SUBTOTAL(109,Listopad[[Prekovremeni rad    ]])","v":{"v":0,"d":"0.0"}}]
["Ukupan broj sati tijekom redovnog radnog vremena za listopad automatski se izračunava u ćeliji F110, dok se ukupan broj sati prekovremenog rada za listopad automatski izračunava u ćeliji I110. Sljedeća je uputa u ćeliji A112.",{"$nulls":3},{"$f":"TEXT(DATEVALUE(Listopad[[#Headers],[Listopad]]&\" \"&YEAR(TODAY())),\"mmm.\")&\" ukupno: Redovno radno vrijeme\"","v":"lis. ukupno: Redovno radno vrijeme"},{"$f":"SUM(Listopad[Tjedan 1],Listopad[Tjedan 2],Listopad[Tjedan 3],Listopad[Tjedan 4],Listopad[Tjedan 5])","v":{"v":0,"d":"0.0"}},{"$f":"TEXT(DATEVALUE(Listopad[[#Headers],[Listopad]]&\" \"&YEAR(TODAY())),\"mmm.\")&\" ukupno: Prekovremeni rad\"","v":"lis. ukupno: Prekovremeni rad"},null,{"$f":"SUM(Listopad[Prekovremeni rad],Listopad[[Prekovremeni rad ]],Listopad[[Prekovremeni rad  ]],Listopad[[Prekovremeni rad   ]],Listopad[[Prekovremeni rad    ]])","v":{"v":0,"d":"0.0"}}]
[]
["Broj sati tijekom redovnog radnog vremena i prekovremenog rada za studeni unesite u tablicu koja započinje ćelijom E112. Sljedeća je uputa u ćeliji A121.",{"$nulls":3},"Studeni","Tjedan 1","Prekovremeni rad","Tjedan 2","Prekovremeni rad ","Tjedan 3","Prekovremeni rad  ","Tjedan 4","Prekovremeni rad    ","Tjedan 5","Prekovremeni rad     "]
[{"$nulls":4},"Ponedjeljak"]
[{"$nulls":4},"Utorak"]
[{"$nulls":4},"Srijeda"]
[{"$nulls":4},"Četvrtak"]
[{"$nulls":4},"Petak"]
[{"$nulls":4},"Subota"]
[{"$nulls":4},"Nedjelja"]
[{"$nulls":4},"Ukupan broj sati tjedno",{"$f":"SUBTOTAL(109,Studeni[Tjedan 1])","v":{"v":0,"d":"0.0"}},{"$f":"SUBTOTAL(109,Studeni[Prekovremeni rad])","v":{"v":0,"d":"0.0"}},{"$f":"SUBTOTAL(109,Studeni[Tjedan 2])","v":{"v":0,"d":"0.0"}},{"$f":"SUBTOTAL(109,Studeni[[Prekovremeni rad ]])","v":{"v":0,"d":"0.0"}},{"$f":"SUBTOTAL(109,Studeni[Tjedan 3])","v":{"v":0,"d":"0.0"}},{"$f":"SUBTOTAL(109,Studeni[[Prekovremeni rad  ]])","v":{"v":0,"d":"0.0"}},{"$f":"SUBTOTAL(109,Studeni[Tjedan 4])","v":{"v":0,"d":"0.0"}},{"$f":"SUBTOTAL(109,Studeni[[Prekovremeni rad    ]])","v":{"v":0,"d":"0.0"}},{"$f":"SUBTOTAL(109,Studeni[Tjedan 5])","v":{"v":0,"d":"0.0"}},{"$f":"SUBTOTAL(109,Studeni[[Prekovremeni rad     ]])","v":{"v":0,"d":"0.0"}}]
["Ukupan broj sati tijekom redovnog radnog vremena za studeni automatski se izračunava u ćeliji F121, dok se ukupan broj sati prekovremenog rada za studeni automatski izračunava u ćeliji I121. Sljedeća je uputa u ćeliji A123.",{"$nulls":3},{"$f":"TEXT(DATEVALUE(Studeni[[#Headers],[Studeni]]&\" \"&YEAR(TODAY())),\"mmm.\")&\" ukupno: Redovno radno vrijeme\"","v":"stu. ukupno: Redovno radno vrijeme"},{"$f":"SUM(Studeni[Tjedan 1],Studeni[Tjedan 2],Studeni[Tjedan 3],Studeni[Tjedan 4],Studeni[Tjedan 5])","v":{"v":0,"d":"0.0"}},{"$f":"TEXT(DATEVALUE(Studeni[[#Headers],[Studeni]]&\" \"&YEAR(TODAY())),\"mmm.\")&\" ukupno: Prekovremeni rad\"","v":"stu. ukupno: Prekovremeni rad"},null,{"$f":"SUM(Studeni[Prekovremeni rad],Studeni[[Prekovremeni rad ]],Studeni[[Prekovremeni rad  ]],Studeni[[Prekovremeni rad    ]],Studeni[[Prekovremeni rad     ]])","v":{"v":0,"d":"0.0"}}]
[]
["Broj sati tijekom redovnog radnog vremena i prekovremenog rada za prosinac unesite u tablicu koja započinje ćelijom E123. Sljedeća je uputa u ćeliji A132.",{"$nulls":3},"Prosinac","Tjedan 1","Prekovremeni rad","Tjedan 2","Prekovremeni rad ","Tjedan 3","Prekovremeni rad  ","Tjedan 4","Prekovremeni rad   ","Tjedan 5","Prekovremeni rad    "]
[{"$nulls":4},"Ponedjeljak"]
[{"$nulls":4},"Utorak"]
[{"$nulls":4},"Srijeda"]
[{"$nulls":4},"Četvrtak"]
[{"$nulls":4},"Petak"]
[{"$nulls":4},"Subota"]
[{"$nulls":4},"Nedjelja"]
[{"$nulls":4},"Ukupan broj sati tjedno",{"$f":"SUBTOTAL(109,Prosinac[Tjedan 1])","v":{"v":0,"d":"0.0"}},{"$f":"SUBTOTAL(109,Prosinac[Prekovremeni rad])","v":{"v":0,"d":"0.0"}},{"$f":"SUBTOTAL(109,Prosinac[Tjedan 2])","v":{"v":0,"d":"0.0"}},{"$f":"SUBTOTAL(109,Prosinac[[Prekovremeni rad ]])","v":{"v":0,"d":"0.0"}},{"$f":"SUBTOTAL(109,Prosinac[Tjedan 3])","v":{"v":0,"d":"0.0"}},{"$f":"SUBTOTAL(109,Prosinac[[Prekovremeni rad  ]])","v":{"v":0,"d":"0.0"}},{"$f":"SUBTOTAL(109,Prosinac[Tjedan 4])","v":{"v":0,"d":"0.0"}},{"$f":"SUBTOTAL(109,Prosinac[[Prekovremeni rad   ]])","v":{"v":0,"d":"0.0"}},{"$f":"SUBTOTAL(109,Prosinac[Tjedan 5])","v":{"v":0,"d":"0.0"}},{"$f":"SUBTOTAL(109,Prosinac[[Prekovremeni rad    ]])","v":{"v":0,"d":"0.0"}}]
["Ukupan broj sati tijekom redovnog radnog vremena za prosinac automatski se izračunava u ćeliji F132, dok se ukupan broj sati prekovremenog rada za prosinac automatski izračunava u ćeliji I132.",{"$nulls":3},{"$f":"TEXT(DATEVALUE(Prosinac[[#Headers],[Prosinac]]&\" \"&YEAR(TODAY())),\"mmm.\")&\" ukupno: Redovno radno vrijeme\"","v":"pro. ukupno: Redovno radno vrijeme"},{"$f":"SUM(Prosinac[Tjedan 1],Prosinac[Tjedan 2],Prosinac[Tjedan 3],Prosinac[Tjedan 4],Prosinac[Tjedan 5])","v":{"v":0,"d":"0.0"}},{"$f":"TEXT(DATEVALUE(Prosinac[[#Headers],[Prosinac]]&\" \"&YEAR(TODAY())),\"mmm.\")&\" ukupno: Prekovremeni rad\"","v":"pro. ukupno: Prekovremeni rad"},null,{"$f":"SUM(G124:G130,I124:I130,K124:K130,M124:M130,O124:O130)","v":{"v":0,"d":"0.0"}}]